fUSD/lending_fUSD_20250219
["ID","MTS","AMOUNT","RATE_DAILY","PERIOD"]
[353602177,1739956879924,-500.0,0.00013863,2]
[353602178,1739956879948,-500.0,0.00013863,2]
[353602179,1739956879972,-500.0,0.00013863,2]
[353602180,1739956879996,-560.48,0.00013863,2]
[353602181,1739956880020,-500.0,0.00013863,2]
[353602182,1739956880043,-500.0,0.00013863,2]
[353602183,1739956880066,-500.0,0.00013863,2]
[353602184,1739956880088,-500.0,0.00013863,2]
[353602185,1739956880111,-1055.45,0.00013863,2]
[353602186,1739956880134,-500.0,0.00013863,2]
[353602187,1739956880157,-598.03,0.00013863,2]
[353602188,1739956880180,-500.0,0.00013863,2]
[353602189,1739956880204,-500.0,0.00013863,2]
[353602190,1739956880226,-500.0,0.00013863,2]
[353602191,1739956880250,-691.51,0.00013863,2]
[353602192,1739956880272,-500.0,0.00013863,2]
[353602193,1739956880296,-909.51,0.00013863,2]
[353602194,1739956880320,-897.4,0.00013863,2]
[353602195,1739956880343,-500.0,0.00013863,2]
[353602196,1739956880367,-540.01,0.00013863,2]
[353602197,1739956880401,-500.0,0.00013863,2]
[353602198,1739956880429,-500.0,0.00013863,2]
[353602199,1739956880453,-667.83,0.00013863,2]
[353602200,1739956880477,-500.0,0.00013863,2]
[353602201,1739956880503,-531.54,0.00013863,2]
[353602202,1739956880527,-500.0,0.00013863,2]
[353602203,1739956880552,-805.24,0.00013863,2]
[353602204,1739956880576,-647.18,0.00013863,2]
[353602205,1739956880601,-500.0,0.00013863,2]
[353602206,1739956880627,-525.55,0.00013863,2]
[353602207,1739956880652,-500.0,0.00013863,2]
[353602208,1739956880677,-218.90407327,0.00013863,2]
[353602209,1739956880702,-500.0,0.00013863,2]
[353602210,1739956880726,-930.4,0.00013863,2]
[353602211,1739956880750,-500.0,0.00013863,2]
[353602212,1739956880778,-839.6,0.00013863,2]
[353602213,1739956880809,-625.34,0.00013863,2]
[353602214,1739956880835,-642.99826827,0.00013863,2]
[353602215,1739956880860,-589.87,0.00013863,2]
[353602216,1739956880888,-1171.68,0.00013863,2]
[353602217,1739956880914,-1098.19,0.00013863,2]
[353602218,1739956880939,-500.0,0.00013863,2]
[353602219,1739956880965,-500.0,0.00013863,2]
[353602220,1739956880991,-604.9,0.00013863,2]
[353602221,1739956881017,-500.0,0.00013863,2]
[353602222,1739956881042,-500.0,0.00013863,2]
[353602223,1739956881068,-500.0,0.00013863,2]
[353602224,1739956881095,-809.06,0.00013863,2]
[353602225,1739956881121,-515.28,0.00013863,2]
[353602226,1739956881147,-753.13,0.00013863,2]
[353602227,1739956881171,-500.0,0.00013863,2]
[353602228,1739956881198,-598.09,0.00013863,2]
[353602229,1739956881224,-551.52,0.00013863,2]
[353602230,1739956881251,-500.0,0.00013863,2]
[353602231,1739956881277,-500.0,0.00013863,2]
[353602232,1739956881302,-500.0,0.00013863,2]
[353602233,1739956881328,-770.16,0.00013863,2]
[353602234,1739956881353,-500.0,0.00013863,2]
[353602235,1739956881378,-500.0,0.00013863,2]
[353602236,1739956881404,-500.0,0.00013863,2]
[353602237,1739956881434,-500.0,0.00013863,2]
[353602238,1739956881460,-500.0,0.00013863,2]
[353602239,1739956881484,-500.0,0.00013863,2]
[353602240,1739956881509,-500.0,0.00013863,2]
[353602241,1739956881534,-500.0,0.00013863,2]
[353602242,1739956881559,-500.0,0.00013863,2]
[353602243,1739956881584,-500.0,0.00013863,2]
[353602244,1739956881609,-711.34,0.00013863,2]
[353602245,1739956881633,-500.0,0.00013863,2]
[353602246,1739956881657,-891.89,0.00013863,2]
[353602247,1739956881683,-533.08,0.00013863,2]
[353602248,1739956881707,-512.49,0.00013863,2]
[353602249,1739956881732,-628.45,0.00013863,2]
[353602250,1739956881757,-500.0,0.00013863,2]
[353602251,1739956881790,-500.0,0.00013863,2]
[353602252,1739956881822,-500.0,0.00013863,2]
[353602253,1739956881853,-1298.97,0.00013863,2]
[353602254,1739956881881,-743.05,0.00013863,2]
[353602255,1739956881916,-500.0,0.00013863,2]
[353602256,1739956881943,-1540.98,0.00013863,2]
[353602257,1739956881968,-677.73,0.00013863,2]
[353602258,1739956881993,-827.42,0.00013863,2]
[353602259,1739956882019,-545.22,0.00013863,2]
[353602260,1739956882043,-807.24,0.00013863,2]
[353602261,1739956882068,-1196.16,0.00013863,2]
[353602262,1739956882094,-514.11,0.00013863,2]
[353602263,1739956882118,-500.0,0.00013863,2]
[353602264,1739956882142,-819.39,0.00013863,2]
[353602265,1739956882166,-500.0,0.00013863,2]
[353602266,1739956882191,-500.0,0.00013863,2]
[353602267,1739956882217,-693.68,0.00013863,2]
[353602268,1739956882242,-572.21,0.00013863,2]
[353602269,1739956882266,-500.0,0.00013863,2]
[353602270,1739956882292,-1242.56,0.00013863,2]
[353602271,1739956882319,-1181.52,0.00013863,2]
[353602272,1739956882343,-649.94,0.00013863,2]
[353602273,1739956882367,-500.0,0.00013863,2]
[353602274,1739956882397,-500.0,0.00013863,2]
[353602275,1739956882421,-500.0,0.00013863,2]
[353602276,1739956882446,-500.0,0.00013863,2]
[353602277,1739956882474,-500.0,0.00013863,2]
[353602278,1739956882499,-1283.5,0.00013863,2]
[353602279,1739956882523,-933.02,0.00013863,2]
[353602280,1739956882547,-500.0,0.00013863,2]
[353602281,1739956882571,-500.0,0.00013863,2]
[353602282,1739956882596,-528.61920402,0.00013863,2]
[353602283,1739956882916,-1211.58,0.00013863,2]
[353602284,1739956882941,-500.0,0.00013863,2]
[353602285,1739956882967,-512.1076463,0.00013863,2]
[353602286,1739956882992,-500.0,0.00013863,2]
[353602287,1739956883031,-500.0,0.00013863,2]
[353602288,1739956883060,-1135.36,0.00013863,2]
[353602289,1739956883086,-500.0,0.00013863,2]
[353602290,1739956883113,-722.48,0.00013863,2]
[353602291,1739956883137,-1258.1,0.00013863,2]
[353602292,1739956883162,-1196.62,0.00013863,2]
[353602293,1739956883188,-504.95537379,0.00013863,2]
[353602294,1739956883215,-357.62685848,0.00013863,2]
[353602295,1739956883241,-500.0,0.00013863,2]
[353602296,1739956883268,-500.0,0.00013863,2]
[353602297,1739956883293,-500.0,0.00013863,2]
[353602298,1739956883317,-500.0,0.00013863,2]
[353602299,1739956883343,-1272.14,0.00013863,2]
[353602300,1739956883368,-813.11,0.00013863,2]
[353602301,1739956883395,-500.0,0.00013863,2]
[353602302,1739956883421,-837.63,0.00013863,2]
[353602303,1739956883447,-500.0,0.00013863,2]
[353602304,1739956883472,-500.0,0.00013863,2]
[353602305,1739956883496,-1095.27,0.00013863,2]
[353602306,1739956883522,-712.89,0.00013863,2]
[353602307,1739956883553,-500.0,0.00013863,2]
[353602308,1739956883579,-500.0,0.00013863,2]
[353602309,1739956883604,-500.0,0.00013863,2]
[353602310,1739956883628,-500.0,0.00013863,2]
[353602311,1739956883653,-709.96,0.00013863,2]
[353602312,1739956883679,-500.0,0.00013863,2]
[353602313,1739956883704,-500.0,0.00013863,2]
[353602314,1739956883728,-862.66,0.00013863,2]
[353602315,1739956883754,-1233.72,0.00013863,2]
[353602316,1739956883778,-500.0,0.00013863,2]
[353602317,1739956883805,-740.17,0.00013863,2]
[353602318,1739956883831,-758.66,0.00013863,2]
[353602319,1739956883860,-500.0,0.00013863,2]
[353602320,1739956883887,-601.16,0.00013863,2]
[353602321,1739956883912,-500.0,0.00013863,2]
[353602322,1739956883937,-876.33,0.00013863,2]
[353602323,1739956883963,-500.0,0.00013863,2]
[353602324,1739956883989,-689.44,0.00013863,2]
[353602325,1739956884015,-593.48,0.00013863,2]
[353602326,1739956884040,-772.96,0.00013863,2]
[353602327,1739956884068,-500.0,0.00013863,2]
[353602328,1739956884095,-500.0,0.00013863,2]
[353602329,1739956884121,-500.0,0.00013863,2]
[353602330,1739956884147,-500.0,0.00013863,2]
[353602331,1739956884174,-774.93,0.00013863,2]
[353602332,1739956884200,-622.51,0.00013863,2]
[353602333,1739956884225,-500.0,0.00013863,2]
[353602334,1739956884250,-500.0,0.00013863,2]
[353602335,1739956884275,-500.0,0.00013863,2]
[353602336,1739956884301,-1397.033156,0.00013863,2]
[353602337,1739956884328,-1551.89,0.00013863,2]
[353602338,1739956884352,-500.0,0.00013863,2]
[353602339,1739956884377,-1325.26,0.00013863,2]
[353602340,1739956884402,-500.0,0.00013863,2]
[353602341,1739956884427,-1550.86,0.00013863,2]
[353602342,1739956884454,-500.0,0.00013863,2]
[353602343,1739956884480,-750.16,0.00013863,2]
[353602344,1739956884505,-500.0,0.00013863,2]
[353602345,1739956884529,-500.0,0.00013863,2]
[353602346,1739956884555,-1255.08,0.00013863,2]
[353602347,1739956884580,-520.46414082,0.00013863,2]
[353602348,1739956884605,-500.0,0.00013863,2]
[353602349,1739956884629,-1394.43,0.00013863,2]
[353602350,1739956884654,-500.0,0.00013863,2]
[353602351,1739956884679,-1340.24,0.00013863,2]
[353602352,1739956884706,-384.45,0.00013863,2]
[353602353,1739956884731,-500.0,0.00013863,2]
[353602354,1739956884756,-151.0,0.00013863,2]
[353602355,1739956884781,-500.0,0.00013863,2]
[353602356,1739956884808,-360.7842424,0.00013863,2]
[353602357,1739956884835,-638.51,0.00013863,2]
[353602358,1739956884860,-500.0,0.00013863,2]
[353602359,1739956884888,-500.0,0.00013863,2]
[353602360,1739956884914,-500.0,0.00013863,2]
[353602361,1739956884940,-500.0,0.00013863,2]
[353602362,1739956884966,-500.0,0.00013863,2]
[353602363,1739956884993,-500.0,0.00013863,2]
[353602364,1739956885019,-1730.23,0.00013863,2]
[353602365,1739956885045,-916.97,0.00013863,2]
[353602366,1739956885070,-500.0,0.00013863,2]
[353602367,1739956885096,-500.0,0.00013863,2]
[353602368,1739956885122,-628.71,0.00013863,2]
[353602369,1739956885147,-571.77,0.00013863,2]
[353602370,1739956885171,-500.0,0.00013863,2]
[353602371,1739956885196,-645.25232965,0.00013863,2]
[353602372,1739956885220,-535.59,0.00013863,2]
[353602373,1739956885246,-543.64,0.00013863,2]
[353602374,1739956885272,-2256.25,0.00013863,2]
[353602375,1739956885296,-500.0,0.00013863,2]
[353602376,1739956885322,-1263.66,0.00013863,2]
[353602377,1739956885347,-646.22,0.00013863,2]
[353602378,1739956885373,-865.23,0.00013863,2]
[353602379,1739956885400,-460.02885793,0.00013863,2]
[353602380,1739956885426,-1825.346312,0.00013863,2]
[353602381,1739956885452,-592.33,0.00013863,2]
[353602382,1739956885477,-500.0,0.00013863,2]
[353602383,1739956885502,-646.68,0.00013863,2]
[353602384,1739956885527,-500.0,0.00013863,2]
[353602385,1739956885555,-597.97,0.00013863,2]
[353602386,1739956885581,-500.0,0.00013863,2]
[353602387,1739956885606,-694.2,0.00013863,2]
[353602388,1739956885630,-500.0,0.00013863,2]
[353602389,1739956885655,-500.0,0.00013863,2]
[353602390,1739956885679,-1174.15,0.00013863,2]
[353602391,1739956885704,-500.0,0.00013863,2]
[353602392,1739956885730,-878.0,0.00013863,2]
[353602393,1739956885754,-500.0,0.00013863,2]
[353602394,1739956885779,-825.52,0.00013863,2]
[353602395,1739956885805,-151.0,0.00013863,2]
[353602396,1739956885831,-500.0,0.00013863,2]
[353602397,1739956885857,-500.0,0.00013863,2]
[353602398,1739956885882,-500.0,0.00013863,2]
[353602399,1739956885909,-500.0,0.00013863,2]
[353602400,1739956885938,-516.38,0.00013863,2]
[353602401,1739956885962,-500.0,0.00013863,2]
[353602402,1739956885987,-1824.29,0.00013863,2]
[353602403,1739956886012,-500.0,0.00013863,2]
[353602404,1739956886038,-500.0,0.00013863,2]
[353602405,1739956886062,-500.0,0.00013863,2]
[353602406,1739956886088,-1264.71,0.00013863,2]
[353602407,1739956886114,-906.18,0.00013863,2]
[353602408,1739956886139,-500.0,0.00013863,2]
[353602409,1739956886164,-1306.61,0.00013863,2]
[353602410,1739956886188,-500.0,0.00013863,2]
[353602411,1739956886216,-500.0,0.00013863,2]
[353602412,1739956886243,-500.0,0.00013863,2]
[353602413,1739956886271,-565.96,0.00013863,2]
[353602414,1739956886296,-500.0,0.00013863,2]
[353602415,1739956886323,-1760.03,0.00013863,2]
[353602416,1739956886349,-988.21,0.00013863,2]
[353602417,1739956886374,-2269.81,0.00013863,2]
[353602418,1739956886402,-500.0,0.00013863,2]
[353602419,1739956886428,-1121.54,0.00013863,2]
[353602420,1739956886453,-2305.0,0.00013863,2]
[353602421,1739956886478,-500.0,0.00013863,2]
[353602422,1739956886502,-500.0,0.00013863,2]
[353602423,1739956886526,-500.52,0.00013863,2]
[353602424,1739956886551,-500.0,0.00013863,2]
[353602425,1739956886575,-500.0,0.00013863,2]
[353602426,1739956886599,-500.0,0.00013863,2]
[353602427,1739956886623,-1126.66,0.00013863,2]
[353602428,1739956886651,-500.0,0.00013863,2]
[353602429,1739956886676,-1643.55,0.00013863,2]
[353602430,1739956886700,-500.0,0.00013863,2]
[353602431,1739956886723,-628.69,0.00013863,2]
[353602432,1739956886985,-500.0,0.00013863,2]
[353602433,1739956887012,-500.0,0.00013863,2]
[353602434,1739956887038,-500.0,0.00013863,2]
[353602435,1739956887063,-500.0,0.00013863,2]
[353602436,1739956887093,-500.0,0.00013863,2]
[353602437,1739956887118,-883.27,0.00013863,2]
[353602438,1739956887145,-777.31,0.00013863,2]
[353602439,1739956887170,-601.15,0.00013863,2]
[353602440,1739956887197,-2208.44,0.00013863,2]
[353602441,1739956887223,-1667.83,0.00013863,2]
[353602442,1739956887249,-1753.2,0.00013863,2]
[353602443,1739956887280,-500.0,0.00013863,2]
[353602444,1739956887306,-1572.56,0.00013863,2]
[353602445,1739956887332,-500.0,0.00013863,2]
[353602446,1739956887357,-500.0,0.00013863,2]
[353602447,1739956887391,-500.0,0.00013863,2]
[353602448,1739956887425,-500.0,0.00013863,2]
[353602449,1739956887463,-449.54855193,0.00013863,2]
[353602450,1739956887489,-653.11,0.00013863,2]
[353602451,1739956887515,-500.0,0.00013863,2]
[353602452,1739956887543,-1126.58,0.00013863,2]
[353602453,1739956887575,-777.33,0.00013863,2]
[353602454,1739956887601,-1342.86,0.00013863,2]
[353602455,1739956887628,-500.0,0.00013863,2]
[353602456,1739956887655,-336.4035005,0.00013863,2]
[353602457,1739956887680,-500.0,0.00013863,2]
[353602458,1739956887707,-1668.96,0.00013863,2]
[353602459,1739956887735,-523.08,0.00013863,2]
[353602460,1739956887762,-2666.13,0.00013863,2]
[353602461,1739956887789,-500.0,0.00013863,2]
[353602462,1739956887821,-500.0,0.00013863,2]
[353602463,1739956887849,-1044.61,0.00013863,2]
[353602464,1739956887876,-1982.35,0.00013863,2]
[353602465,1739956887903,-500.0,0.00013863,2]
[353602466,1739956887927,-500.0,0.00013863,2]
[353602467,1739956887951,-712.57,0.00013863,2]
[353602468,1739956887975,-500.0,0.00013863,2]
[353602469,1739956888006,-500.0,0.00013863,2]
[353602470,1739956888035,-3739.72,0.00013863,2]
[353602471,1739956888061,-500.0,0.00013863,2]
[353602472,1739956888088,-540.46,0.00013863,2]
[353602473,1739956888115,-777.07,0.00013863,2]
[353602474,1739956888142,-2581.76,0.00013863,2]
[353602475,1739956888166,-687.05,0.00013863,2]
[353602476,1739956888191,-239.58431385,0.00013863,2]
[353602477,1739956888216,-500.0,0.00013863,2]
[353602478,1739956888242,-500.0,0.00013863,2]
[353602479,1739956888268,-500.0,0.00013863,2]
[353602480,1739956888298,-500.0,0.00013863,2]
[353602481,1739956888324,-500.0,0.00013863,2]
[353602482,1739956888351,-2399.65,0.00013863,2]
[353602483,1739956888377,-1879.93,0.00013863,2]
[353602484,1739956888409,-879.81,0.00013863,2]
[353602485,1739956888440,-5902.61,0.00013863,2]
[353602486,1739956888467,-1936.77,0.00013863,2]
[353602487,1739956888493,-500.0,0.00013863,2]
[353602488,1739956888517,-525.83,0.00013863,2]
[353602489,1739956888542,-625.39,0.00013863,2]
[353602490,1739956888569,-848.73,0.00013863,2]
[353602491,1739956888598,-501.17480644,0.00013863,2]
[353602492,1739956888622,-151.0,0.00013863,2]
[353602493,1739956888648,-2309.63,0.00013863,2]
[353602494,1739956888674,-888.05,0.00013863,2]
[353602495,1739956888700,-787.18,0.00013863,2]
[353602496,1739956888726,-500.0,0.00013863,2]
[353602497,1739956888750,-259.74109759,0.00013863,2]
[353602498,1739956888777,-3367.94,0.00013863,2]
[353602499,1739956888806,-500.0,0.00013863,2]
[353602500,1739956888831,-500.0,0.00013863,2]
[353602501,1739956888858,-781.66,0.00013863,2]
[353602502,1739956888885,-1005.74,0.00013863,2]
[353602503,1739956888911,-532.61,0.00013863,2]
[353602504,1739956888935,-596.76,0.00013863,2]
[353602505,1739956888961,-536.22,0.00013863,2]
[353602506,1739956888988,-982.06,0.00013863,2]
[353602507,1739956889016,-500.0,0.00013863,2]
[353602508,1739956889043,-500.0,0.00013863,2]
[353602509,1739956889071,-500.0,0.00013863,2]
[353602510,1739956889097,-500.0,0.00013863,2]
[353602511,1739956889121,-500.0,0.00013863,2]
[353602512,1739956889147,-914.58,0.00013863,2]
[353602513,1739956889172,-1779.03,0.00013863,2]
[353602514,1739956889198,-500.0,0.00013863,2]
[353602515,1739956889224,-2248.39,0.00013863,2]
[353602516,1739956889249,-500.0,0.00013863,2]
[353602517,1739956889275,-1556.0,0.00013863,2]
[353602518,1739956889301,-3142.11,0.00013863,2]
[353602519,1739956889325,-500.0,0.00013863,2]
[353602520,1739956889349,-500.0,0.00013863,2]
[353602521,1739956889373,-500.0,0.00013863,2]
[353602522,1739956889398,-500.0,0.00013863,2]
[353602523,1739956889423,-657.0,0.00013863,2]
[353602524,1739956889448,-500.0,0.00013863,2]
[353602525,1739956889472,-727.68,0.00013863,2]
[353602526,1739956889497,-1554.06,0.00013863,2]
[353602527,1739956889522,-500.0,0.00013863,2]
[353602528,1739956889546,-594.44,0.00013863,2]
[353602529,1739956889572,-826.69,0.00013863,2]
[353602530,1739956889596,-500.0,0.00013863,2]
[353602531,1739956889620,-614.83,0.00013863,2]
[353602532,1739956889645,-500.0,0.00013863,2]
[353602533,1739956889669,-500.0,0.00013863,2]
[353602534,1739956889695,-500.0,0.00013863,2]
[353602535,1739956889720,-500.0,0.00013863,2]
[353602536,1739956889744,-500.0,0.00013863,2]
[353602537,1739956889768,-1286.14,0.00013863,2]
[353602538,1739956889793,-539.19,0.00013863,2]
[353602539,1739956889822,-500.0,0.00013863,2]
[353602540,1739956889846,-731.14,0.00013863,2]
[353602541,1739956889872,-500.0,0.00013863,2]
[353602542,1739956889899,-523.74,0.00013863,2]
[353602543,1739956889926,-2395.44,0.00013863,2]
[353602544,1739956889950,-1494.76,0.00013863,2]
[353602545,1739956889976,-500.0,0.00013863,2]
[353602546,1739956890005,-2018.34,0.00013863,2]
[353602547,1739956890030,-1931.33,0.00013863,2]
[353602548,1739956890057,-500.0,0.00013863,2]
[353602549,1739956890081,-500.0,0.00013863,2]
[353602550,1739956890107,-500.0,0.00013863,2]
[353602551,1739956890133,-500.0,0.00013863,2]
[353602552,1739956890158,-656.29,0.00013863,2]
[353602553,1739956890184,-3474.74,0.00013863,2]
[353602554,1739956890207,-705.38,0.00013863,2]
[353602555,1739956890231,-500.0,0.00013863,2]
[353602556,1739956890255,-500.0,0.00013863,2]
[353602557,1739956890281,-500.0,0.00013863,2]
[353602558,1739956890306,-1380.28,0.00013863,2]
[353602559,1739956890329,-500.0,0.00013863,2]
[353602560,1739956890354,-1545.46,0.00013863,2]
[353602561,1739956890378,-500.0,0.00013863,2]
[353602562,1739956890408,-2114.46,0.00013863,2]
[353602563,1739956890431,-500.0,0.00013863,2]
[353602564,1739956890456,-500.0,0.00013863,2]
[353602565,1739956890480,-500.0,0.00013863,2]
[353602566,1739956890507,-1429.82,0.00013863,2]
[353602567,1739956890531,-1469.68,0.00013863,2]
[353602568,1739956890556,-500.0,0.00013863,2]
[353602569,1739956890580,-1313.13,0.00013863,2]
[353602570,1739956890603,-1337.0,0.00013863,2]
[353602571,1739956890625,-500.0,0.00013863,2]
[353602572,1739956890648,-2257.5,0.00013863,2]
[353602573,1739956890671,-500.0,0.00013863,2]
[353602574,1739956890695,-500.0,0.00013863,2]
[353602575,1739956890718,-500.0,0.00013863,2]
[353602576,1739956890741,-500.0,0.00013863,2]
[353602577,1739956890764,-1263.75,0.00013863,2]
[353602578,1739956890789,-500.0,0.00013863,2]
[353602579,1739956890816,-1629.48,0.00013863,2]
[353602580,1739956890841,-500.0,0.00013863,2]
[353602581,1739956891071,-506.69,0.00013863,2]
[353602582,1739956891100,-2270.86,0.00013863,2]
[353602583,1739956891125,-500.0,0.00013863,2]
[353602584,1739956891149,-1643.27,0.00013863,2]
[353602585,1739956891173,-500.0,0.00013863,2]
[353602586,1739956891197,-1757.75,0.00013863,2]
[353602587,1739956891221,-1948.19,0.00013863,2]
[353602588,1739956891248,-500.0,0.00013863,2]
[353602589,1739956891272,-500.0,0.00013863,2]
[353602590,1739956891296,-500.0,0.00013863,2]
[353602591,1739956891321,-500.07,0.00013863,2]
[353602592,1739956891346,-1374.04,0.00013863,2]
[353602593,1739956891372,-904.38,0.00013863,2]
[353602594,1739956891397,-500.0,0.00013863,2]
[353602595,1739956891424,-2361.29,0.00013863,2]
[353602596,1739956891448,-500.0,0.00013863,2]
[353602597,1739956891472,-500.0,0.00013863,2]
[353602598,1739956891495,-500.0,0.00013863,2]
[353602599,1739956891520,-1130.3,0.00013863,2]
[353602600,1739956891544,-500.0,0.00013863,2]
[353602601,1739956891568,-500.0,0.00013863,2]
[353602602,1739956891593,-500.0,0.00013863,2]
[353602603,1739956891617,-2880.46,0.00013863,2]
[353602604,1739956891643,-500.0,0.00013863,2]
[353602605,1739956891669,-1483.81,0.00013863,2]
[353602606,1739956891694,-783.44,0.00013863,2]
[353602607,1739956891720,-1911.92,0.00013863,2]
[353602608,1739956891745,-500.0,0.00013863,2]
[353602609,1739956891770,-500.0,0.00013863,2]
[353602610,1739956891796,-708.89,0.00013863,2]
[353602611,1739956891824,-1303.36,0.00013863,2]
[353602612,1739956891851,-1701.13,0.00013863,2]
[353602613,1739956891876,-1548.86,0.00013863,2]
[353602614,1739956891902,-500.0,0.00013863,2]
[353602615,1739956891926,-514.71522865,0.00013863,2]
[353602616,1739956891951,-500.0,0.00013863,2]
[353602617,1739956891976,-748.53,0.00013863,2]
[353602618,1739956892001,-500.0,0.00013863,2]
[353602619,1739956892027,-626.2,0.00013863,2]
[353602620,1739956892052,-500.0,0.00013863,2]
[353602621,1739956892077,-3621.02,0.00013863,2]
[353602622,1739956892102,-2089.52,0.00013863,2]
[353602623,1739956892127,-500.0,0.00013863,2]
[353602624,1739956892150,-500.0,0.00013863,2]
[353602625,1739956892175,-691.7,0.00013863,2]
[353602626,1739956892199,-500.0,0.00013863,2]
[353602627,1739956892223,-273.55706058,0.00013863,2]
[353602628,1739956892248,-514.15,0.00013863,2]
[353602629,1739956892274,-3785.12,0.00013863,2]
[353602630,1739956892298,-500.0,0.00013863,2]
[353602631,1739956892323,-500.0,0.00013863,2]
[353602632,1739956892348,-500.0,0.00013863,2]
[353602633,1739956892372,-500.0,0.00013863,2]
[353602634,1739956892398,-598.12,0.00013863,2]
[353602635,1739956892424,-1541.92,0.00013863,2]
[353602636,1739956892449,-1934.6,0.00013863,2]
[353602637,1739956892472,-500.0,0.00013863,2]
[353602638,1739956892496,-520.67559504,0.00013863,2]
[353602639,1739956892520,-500.0,0.00013863,2]
[353602640,1739956892544,-500.0,0.00013863,2]
[353602641,1739956892568,-500.0,0.00013863,2]
[353602642,1739956892593,-1590.92,0.00013863,2]
[353602643,1739956892617,-500.0,0.00013863,2]
[353602644,1739956892642,-1012.12,0.00013863,2]
[353602645,1739956892666,-500.0,0.00013863,2]
[353602646,1739956892689,-629.55,0.00013863,2]
[353602647,1739956892713,-199.76205046,0.00013863,2]
[353602648,1739956892742,-1022.31,0.00013863,2]
[353602649,1739956892767,-500.0,0.00013863,2]
[353602650,1739956892792,-500.0,0.00013863,2]
[353602651,1739956892822,-956.27,0.00013863,2]
[353602652,1739956892847,-1264.81,0.00013863,2]
[353602653,1739956892874,-500.0,0.00013863,2]
[353602654,1739956892903,-1875.39,0.00013863,2]
[353602655,1739956892930,-500.0,0.00013863,2]
[353602656,1739956892971,-500.89,0.00013863,2]
[353602657,1739956892998,-848.21,0.00013863,2]
[353602658,1739956893027,-500.0,0.00013863,2]
[353602659,1739956893057,-500.0,0.00013863,2]
[353602660,1739956893084,-500.0,0.00013863,2]
[353602661,1739956893111,-500.0,0.00013863,2]
[353602662,1739956893139,-3014.89,0.00013863,2]
[353602663,1739956893167,-998.89,0.00013863,2]
[353602664,1739956893194,-1836.1,0.00013863,2]
[353602665,1739956893221,-500.0,0.00013863,2]
[353602666,1739956893249,-2169.01,0.00013863,2]
[353602667,1739956893277,-500.0,0.00013863,2]
[353602668,1739956893304,-500.0,0.00013863,2]
[353602669,1739956893331,-500.0,0.00013863,2]
[353602670,1739956893359,-782.0,0.00013863,2]
[353602671,1739956893386,-500.0,0.00013863,2]
[353602672,1739956893415,-500.0,0.00013863,2]
[353602673,1739956893441,-840.54,0.00013863,2]
[353602674,1739956893472,-2418.07,0.00013863,2]
[353602675,1739956893499,-500.0,0.00013863,2]
[353602676,1739956893528,-2203.92,0.00013863,2]